[Event "Reykjavik Open 2024"]
[Site "Reykjavik"]
[Date "2024.03.18"]
[Round "5.17"]
[White "Larkin, Vladyslav"]
[Black "Kistrup, Nicolai"]
[Result "1-0"]
[ECO "B90"]
[WhiteElo "2450"]
[BlackElo "2324"]
[Annotator "TA"]
[PlyCount "167"]
[EventDate "2024.03.12"]
[EventCountry "ISL"]
[SourceTitle "playchess.com"]
[Source "ChessBase"]
[SourceQuality "1"]
[TimeControl "40/5400+30:1800+30"]

{[%evp 15,167,3,29,29,22,19,27,30,33,16,15,21,41,22,33,0,0,-16,0,0,-25,-22,-29,-10,11,9,11,6,12,14,12,7,8,8,305,131,115,108,104,117,100,125,118,116,128,135,200,171,156,166,187,185,145,151,341,231,237,230,231,226,256,249,246,210,209,212,225,195,222,162,214,198,304,297,315,212,197,0,275,276,268,245,482,477,635,631,556,345,348,331,268,327,332,332,241,191,382,366,608,545,507,424,607,564,529,478,524,533,468,481,681,674,500,433,29967,29971,29973,29974,29976,29977,29982,29983,29983,29984,29985,29976,29975,29974,29973,29962,29962,29963,29968,29965,29964,29968,29962,29963,29959,29965,29950,789,29977,29979,29987,29988,29988,29987,29987,29988,29988,29989,29989,29990]} 1. e4 {[%emt 0:00:03]} c5 {[%emt 0:08:26]} 2. Nf3 {[%emt 0:00:28]} d6 {[%emt 0:00:06]} 3. d4 {[%emt 0:00:09]} cxd4 {[%emt 0:00:05]} 4. Nxd4 {[%emt 0:00:03]} Nf6 {[%emt 0:00:08]} 5. Nc3 {[%emt 0:00:04]} a6 {[%emt 0:00:06]} 6. Be3 {[%emt 0:02:01]} e5 {[%emt 0:00:29]} 7. Nb3 {[%emt 0:00:06]} Be6 {[%emt 0:00:06]} 8. f3 {[%emt 0:00:14]} h5 {[%emt 0:00:06]} 9. Nd5 {[%emt 0:01:58]} Bxd5 {[%emt 0:00:40]} 10. exd5 {[%emt 0:00:10]} Nbd7 {[%emt 0:00:13]} 11. Qd2 {[%emt 0:01:05] Weiß hat minimalen Vorteil.} g6 {[%emt 0:00:10]} 12. O-O-O {[%emt 0:00:10]} Nb6 {[%emt 0:00:10]} 13. Kb1 {[%emt 0:01:58]} Nbxd5 {[%emt 0:05:32]} 14. Bg5 {[%emt 0:00:21]} Be7 $1 {[%emt 0:00:08]} 15. a3 {[%emt 0:00:14][%mdl 1024] Weiss hat Kompensation.} Qc7 {[%emt 0:06:11]} 16. g3 {[%emt 0:00:26]} O-O-O {[%emt 0:01:53]} 17. Qf2 {[%emt 0:01:42]} Kb8 {[%emt 0:04:46][%cal Of6d7]} 18. Rd3 {[%emt 0:04:11]} Nd7 {[%emt 0:07:52]} 19. Bd2 {[%emt 0:00:36]} N5b6 {[%emt 0:00:55]} 20. Ba5 {[%emt 0:11:46]} Qc6 {[%emt 0:15:46]} 21. Rc3 {[%emt 0:19:17] Es drohte d5} Nc5 {[%emt 0:00:06]} 22. Nxc5 {[%emt 0:00:20]} dxc5 {[%emt 0:00:06][%cal Bd6c5,Bc5c4][%mdl 32]} 23. Rb3 {[%emt 0:00:14]} Rd1+ {[%emt 0:03:42]} 24. Ka2 {[%emt 0:00:07]} Nd7 {[%emt 0:00:21][%mdl 8192] [#]} (24... Nc8 $1 $11 {und Schwarz steht sicher.}) 25. Bb5 $1 {[%emt 0:10:46][%mdl 512]} axb5 $16 {[%emt 0:00:59]} 26. Rxd1 {[%emt 0:00:07]} c4 {[%emt 0:00:07]} 27. Re3 {[%emt 0:03:32]} Bc5 {[%emt 0:00:07] [#]} 28. Bb4 $1 {[%emt 0:00:23] Und Bxc5 würde nun gewinnen.} Bxe3 {[%emt 0:04:42]} 29. Qxe3 {[%emt 0:00:12]} Ka8 {[%emt 0:01:42] Schwarz hat schwache schwarze Felder} 30. Rd6 $36 {[%emt 0:00:49][%mdl 2048] Schwarz muss aufpassen. Weiß hat aktiveres Spiel.} Qc8 {[%emt 0:01:55]} (30... Qc7 $16 {ist eine bessere Verteidigung.} 31. Qd2 Nb8) 31. Qd2 {[%emt 0:01:15]} Nb8 {[%emt 0:00:33]} 32. Qd5 {[%emt 0:00:55][%csl LRb5,LRe5,LRf7]} Nc6 {[%emt 0:00:10]} 33. Qxb5 {[%emt 0:03:58]} (33. Qxf7 Nxb4+ 34. axb4 c3 $16) 33... Nxb4+ {[%emt 0:00:45]} 34. Qxb4 $18 {[%emt 0:00:48][%mdl 4096] Endspiel. KQR-KQR} Qf5 $2 {[%emt 0:06:38]} (34... Kb8 $16 35. Qb5 Rd8 36. Qxe5 Rxd6 37. Qxd6+ Ka8) 35. Rd5 {[%emt 0:04:22]} (35. Qxc4 Rc8 36. Qd5 Qxc2 $11) 35... Qe6 {[%emt 0:01:28]} 36. Qa5+ {[%emt 0:05:06]} Kb8 {[%emt 0:00:09]} 37. Rxe5 {[%emt 0:00:09]} Qf6 {[%emt 0:00:54]} 38. f4 {[%emt 0:01:53]} Rc8 {[%emt 0:00:09]} 39. Rc5 {[%emt 0:06:55]} Qe6 {[%emt 0:05:24]} 40. Rxc8+ {[%emt 0:00:28]} Kxc8 {[%emt 0:00:03] KQ-KQ} 41. Qc5+ {[%emt 0:32:14]} Kd7 {[%emt 0:30:18]} 42. c3 {[%emt 0:00:50]} b6 {[%emt 0:03:54]} (42... Qc6 $142 43. Qd4+ Ke7) 43. Qd4+ {[%emt 0:00:56]} Kc6 {[%emt 0:00:17]} (43... Ke7 {war nötig.} 44. a4 Qc6) 44. a4 {[%emt 0:01:38]} Kb7 {[%emt 0:03:25]} 45. Ka3 {[%emt 0:03:25]} Qe7+ {[%emt 0:00:05] [#]} 46. Ka2 {[%emt 0:04:24]} (46. b4 $142 $1 cxb3+ 47. Kxb3) 46... Qe6 {[%emt 0:00:16]} 47. Qe5 {[%emt 0:09:41]} Qc6 {[%emt 0:01:52]} 48. Ka3 {[%emt 0:00:37]} Ka6 $2 {[%emt 0:01:43]} (48... f6 49. Qd4 g5 50. fxg5 fxg5 51. Qg7+ Kc8 52. Qxg5 Qh1 53. Qxh5 Qa1+ 54. Kb4 Qxb2+ 55. Kxc4 Kc7 56. Qh7+ Kb8) 49. Kb4 {[%emt 0:01:02]} Qg2 {[%emt 0:00:18]} 50. Qb5+ {[%emt 0:00:00]} (50. Kxc4 Qxb2 51. Qe8 (51. Qb5+ Qxb5+ 52. axb5+ Ka5 $18) 51... Qa2+ 52. Kd4 Qd2+ 53. Kc4 Qa2+ 54. Kd3 Qb1+ 55. Kd2 Qb2+ 56. Kd3 Qb1+ 57. Ke2 Qc2+ 58. Kf1 Qd1+ 59. Kf2 Qd2+ (59... Qd5 60. c4 $11) 60. Kg1 Qd1+ 61. Kg2 (61. Kf2 Qc2+ 62. Qe2+ Qxe2+ 63. Kxe2 Ka5 $11) 61... Qc2+ 62. Kf1 Qd3+ 63. Qe2 Qxe2+ 64. Kxe2 Ka5 $11) 50... Kb7 {[%emt 0:00:00]} 51. Kxc4 {[%emt 0:00:00] Droht stark Qd5+.} Qxh2 {[%emt 0:00:00]} 52. Qd7+ {[%emt 0:00:00]} Ka6 {[%emt 0:00:00]} 53. Qxf7 {[%emt 0:00:00]} Qxb2 {[%emt 0:00:00]} 54. Qxg6 {[%emt 0:00:00]} Qa2+ {[%emt 0:00:00]} 55. Kd4 {[%emt 0:00:00] Zielt auf Qd3+ ab.} Qxa4+ $2 {[%emt 0:00:00] [#]} (55... Qf2+ 56. Kd3 h4) 56. Ke3 $1 {[%emt 0:00:00]} Qa5 $2 {[%emt 0:00:00]} (56... Qa1 57. Qd3+ (57. Qxh5 Qxc3+ 58. Kf2 b5 $14) 57... Ka7) 57. Qd3+ {[%emt 0:00:00]} Ka7 {[%emt 0:00:00]} 58. Qd7+ {[%emt 0:00:00]} Ka6 {[%emt 0:00:00]} (58... Kb8 $142 59. Qd6+ Ka7) 59. Qc8+ {[%emt 0:00:00]} Ka7 {[%emt 0:00:00]} 60. Qc7+ {[%emt 0:00:00]} Ka6 {[%emt 0:00:00]} 61. Qe5 {[%emt 0:00:00] Weiss droht Qxa5+ und Matt.} Qa1 {[%emt 0:00:00]} 62. f5 {[%emt 0:00:00]} (62. Qxh5 Qxc3+ 63. Ke4 Qc2+ 64. Ke3 Qc3+ 65. Kf2 b5 $16) 62... Qc1+ {[%emt 0:00:00]} (62... h4 $142 63. gxh4 Qe1+ 64. Kd4 Qxh4+ 65. Kd5 Qd8+ 66. Kc4 Qh4+ 67. Qd4 (67. Kd5 Qd8+ 68. Ke4 Qh4+ 69. Qf4 Qf6 $16) 67... Qh1) 63. Ke4 {[%emt 0:00:00]} h4 {[%emt 0:00:00]} 64. gxh4 {[%emt 0:00:00] Kd5 ist eine echte Drohung.} Qe1+ {[%emt 0:00:00]} (64... Qh1+ $18 65. Kd3 Qxh4) 65. Kd5 {[%emt 0:00:00]} Qxh4 {[%emt 0:00:00]} 66. f6 {[%emt 0:00:00]} Qh1+ {[%emt 0:00:00]} 67. Kd6 {[%emt 0:00:00]} Qh7 {[%emt 0:00:00]} 68. Qe2+ {[%emt 0:00:00]} b5 {[%emt 0:00:00]} 69. Qe6 {[%emt 0:00:00]} Qh2+ {[%emt 0:00:00]} 70. Ke7+ {[%emt 0:00:00]} Ka5 {[%emt 0:00:00]} 71. f7 {[%emt 0:00:00]} Qc7+ {[%emt 0:00:00]} 72. Kf6 {[%emt 0:00:00]} Qxc3+ {[%emt 0:00:00]} 73. Kg6 {[%emt 0:00:00]} Qg3+ {[%emt 0:00:00]} 74. Kh7 {[%emt 0:00:00]} Qh4+ {[%emt 0:00:00]} 75. Kg7 {[%emt 0:00:00]} Qg3+ {[%emt 0:00:16]} 76. Qg6 {[%emt 0:00:00]} Qc3+ {[%emt 0:00:00]} 77. Kg8 {[%emt 0:00:00]} Qc4 {[%emt 0:00:00]} 78. Qf5 {[%emt 0:08:45] Weiss will mit Qe5 Matt setzen.} Qb3 {[%emt 0:00:00]} 79. Kh7 {[%emt 0:00:15] Weiß setzt Matt.} Qa2 {[%emt 0:00:00]} 80. f8=Q {[%emt 0:00:11]} ({Nicht} 80. f8=B Qh2+ 81. Kg6 Qg1+ 82. Kh7 Qh1+ 83. Kg8 Qg1+ 84. Kf7 Qa7+ 85. Be7 Qd4 $14) 80... Qh2+ {[%emt 0:00:00]} 81. Qh6 {[%emt 0:01:30]} Qc7+ {[%emt 0:00:00]} 82. Kg8 {[%emt 0:02:20]} Qg3+ {[%emt 0:00:00]} 83. Qhg5 {[%emt 0:00:17][%csl Gg5][%cal Rf5b5]} Qb8+ {[%emt 0:00:00]} 84. Qf8 {[%emt 0:00:13] Gewichteter Fehlerwert: Weiß=0.26 (präzise) /Schwarz=0.37.  Verlustzug:     	---       	Schwarz=2     Gewinn verpasst:   	Weiß=1     	---        Fehler:       	Weiß=1     	Schwarz=8     Ungenau:       	Weiß=3     	Schwarz=1     OK:         	Weiß=26    	Schwarz=17    Bester:       	Weiß=6     	Schwarz=9     Stark:        	Weiß=2     	Schwarz=1} 1-0

[Event "Reykjavik Open 2024"]
[Site "Reykjavik"]
[Date "2024.03.18"]
[Round "5.18"]
[White "Mammadzada, Gunay"]
[Black "Manish Anto Cristiano F"]
[Result "1/2-1/2"]
[ECO "A28"]
[WhiteElo "2449"]
[BlackElo "2286"]
[Annotator "TA"]
[PlyCount "84"]
[EventDate "2024.03.12"]
[EventCountry "ISL"]
[SourceTitle "playchess.com"]
[Source "ChessBase"]
[SourceQuality "1"]
[TimeControl "40/5400+30:1800+30"]

{[%evp 12,84,21,0,5,-8,0,0,0,0,0,-7,-8,-29,-12,-33,-28,-29,-35,-95,-104,-110,-97,-195,-157,-169,-152,-163,-158,-210,-212,-256,-217,-210,-204,-201,-206,-213,-214,-206,-214,-310,-310,-311,-216,-231,-227,-227,-204,-216,-204,-272,-75,-61,-66,-65,-54,-57,-74,-72,-74,-59,-69,-69,0,0,0,0,0,0,0,0,0,0,-37]} 1. c4 {[%emt 0:10:21]} e5 {[%emt 0:00:08]} 2. Nc3 {[%emt 0:00:17]} Nf6 {[%emt 0:00:05]} 3. Nf3 {[%emt 0:00:17]} Nc6 {[%emt 0:02:13]} 4. e3 {[%emt 0:00:15]} Bb4 {[%emt 0:00:05]} 5. Qc2 {[%emt 0:00:13]} Bxc3 {[%emt 0:00:06]} 6. Qxc3 {[%emt 0:00:05]} Qe7 {[%emt 0:00:05]} 7. d3 {[%emt 0:01:33]} d5 {[%emt 0:01:35]} 8. Be2 {[%emt 0:00:07]} O-O {[%emt 0:20:18]} 9. O-O {[%emt 0:02:41]} d4 {[%emt 0:05:07]} 10. exd4 {[%emt 0:00:26]} exd4 {[%emt 0:00:23]} 11. Qb3 {[%emt 0:01:13][%cal Oc1f4]} Nd7 {[%emt 0:02:26]} (11... Qxe2 $2 {verliert.} 12. Re1 Na5 13. Qa3 (13. Rxe2 Nxb3 14. axb3 c5 $14) 13... Nxc4 (13... Qc2 $2 14. Nxd4 Nxc4 15. Qxf8+ Kxf8 16. Nxc2 $18) 14. Qxf8+ (14. Rxe2 $2 Nxa3 15. bxa3 c5 $19) 14... Kxf8 15. Rxe2 $18) 12. Re1 {[%emt 0:07:36]} Nc5 {[%emt 0:08:41]} 13. Qa3 {[%emt 0:00:38]} a5 {[%emt 0:01:06]} 14. Bf4 {[%emt 0:20:26]} b6 {[%emt 0:04:49]} 15. Bf1 {[%emt 0:00:48]} (15. b3 $15) 15... Qd8 $17 {[%emt 0:02:21]} 16. Bd2 {[%emt 0:04:23] Verhindert Nb4} Bb7 {[%emt 0:04:43][%cal Oc6b4]} 17. Ne5 {[%emt 0:05:26]} (17. Ng5 $17 {war angesagt.}) 17... Ne7 {[%emt 0:06:25]} 18. h3 {[%emt 0:11:20]} f6 {[%emt 0:02:37]} 19. Ng4 {[%emt 0:00:04]} Ng6 {[%emt 0:03:22]} 20. Rad1 {[%emt 0:01:26]} (20. b4 $17 axb4 21. Qb2) 20... Qd6 $19 {[%emt 0:00:57]} 21. b3 {[%emt 0:01:31]} Nh4 {[%emt 0:10:56] Hervorragende Reitkunst.} 22. Nh2 {[%emt 0:07:45]} f5 {[%emt 0:09:11][%cal Ob7g2]} 23. Bg5 {[%emt 0:00:15]} Ng6 {[%emt 0:00:26]} 24. Bc1 {[%emt 0:00:19]} f4 {[%emt 0:00:36] Droht ...f3 und aus.} 25. Qb2 {[%emt 0:00:54]} Nh4 {[%emt 0:00:48] Und ...Qg6 würde nun gewinnen.} 26. Re4 {[%emt 0:11:43]} (26. f3 $142) 26... Nxe4 {[%emt 0:02:39]} 27. dxe4 {[%emt 0:00:04]} Bxe4 {[%emt 0:01:55]} 28. f3 {[%emt 0:03:35]} Bc6 {[%emt 0:00:45]} 29. Rxd4 {[%emt 0:00:27] [#]} Qc5 {[%emt 0:00:46]} 30. Qf2 {[%emt 0:00:04]} g5 {[%emt 0:00:40]} 31. Bd3 {[%emt 0:00:04]} Nf5 $2 {[%emt 0:01:35]} (31... Rae8 $19 {[%cal Oe8e1] ist viel giftiger. Weiss muss nun ...Re1+! beachten.} 32. Bb2 h5) 32. Bxf5 $17 {[%emt 0:00:04]} Qxf5 {[%emt 0:00:12]} 33. Ng4 {[%emt 0:00:15]} Qe6 {[%emt 0:01:08] Verhindert Nh6+. Und jetzt ...h5 wäre schön.} 34. Rd1 $1 {[%emt 0:02:13]} h5 {[%emt 0:02:16]} 35. Re1 {[%emt 0:00:51] [#]} Qd6 {[%emt 0:00:22]} 36. Ne5 {[%emt 0:00:15][%cal Oc4c5]} Rae8 {[%emt 0:00:36]} 37. Bb2 {[%emt 0:00:28][%cal Oc4c5]} Rf5 {[%emt 0:01:40]} (37... Bd7 $15) 38. Qc2 $1 $11 {[%emt 0:00:31] Die Stellung ist ausgeglichen.} Rexe5 {[%emt 0:04:32]} 39. Bxe5 {[%emt 0:00:16]} Rxe5 {[%emt 0:00:15]} 40. Rxe5 {[%emt 0:00:04]} Qxe5 {[%emt 0:00:15]} 41. Qg6+ {[%emt 0:30:03]} Kf8 {[%emt 0:02:43]} 42. Qxc6 {[%emt 0:00:00]} Qe1+ {[%emt 0:08:17] Weiß entkommt ins Remis.   Gewichteter Fehlerwert: Weiß=0.14 (sehr präzise) /Schwarz=0.18 (sehr präzise) .  Gewinn verpasst:   	---       	Schwarz=1     Fehler:       	Weiß=4     	Schwarz=1     Ungenau:       	Weiß=1     	Schwarz=1     OK:         	Weiß=14    	Schwarz=20    Bester:       	Weiß=4     	Schwarz=1     Stark:        	Weiß=2     	---} 1/2-1/2

[Event "Reykjavik Open 2024"]
[Site "Reykjavik"]
[Date "2024.03.18"]
[Round "5.19"]
[White "Large, Peter G"]
[Black "Chasin, Nico"]
[Result "0-1"]
[ECO "E05"]
[WhiteElo "2262"]
[BlackElo "2447"]
[Annotator "RC"]
[PlyCount "110"]
[EventDate "2024.03.12"]
[EventCountry "ISL"]
[SourceTitle "playchess.com"]
[Source "ChessBase"]
[SourceQuality "1"]
[TimeControl "40/5400+30:1800+30"]

1. d4 {[%emt 0:01:37]} Nf6 {[%emt 0:00:17]} 2. c4 {[%emt 0:00:22]} e6 {[%emt 0:00:12]} 3. Nf3 {[%emt 0:00:31]} d5 {[%emt 0:00:12]} 4. g3 {[%emt 0:00:16]} Be7 {[%emt 0:00:32]} 5. Bg2 {[%emt 0:00:18]} O-O {[%emt 0:00:13]} 6. O-O {[%emt 0:00:04]} dxc4 {[%emt 0:00:13]} 7. Qa4 {[%emt 0:03:53]} a6 {[%emt 0:00:20]} 8. Qxc4 {[%emt 0:00:07]} b5 {[%emt 0:00:06]} 9. Qc2 {[%emt 0:00:08]} Bb7 {[%emt 0:00:11]} 10. Bg5 {[%emt 0:06:48]} Nbd7 {[%emt 0:02:47]} 11. Nbd2 {[%emt 0:08:07]} Rc8 {[%emt 0:02:09]} 12. Bxf6 {[%emt 0:07:11]} Nxf6 {[%emt 0:01:36]} 13. Nb3 {[%emt 0:01:21]} Be4 {[%emt 0:08:47]} 14. Qc3 {[%emt 0:04:49]} Nd5 {[%emt 0:04:08]} 15. Qc6 {[%emt 0:01:11]} Qd6 {[%emt 0:02:31]} 16. Ne5 {[%emt 0:10:18]} Bxg2 {[%emt 0:07:08]} 17. Kxg2 {[%emt 0:00:07]} f6 {[%emt 0:13:22]} 18. Qxd6 {[%emt 0:00:15]} cxd6 {[%emt 0:00:13]} 19. Nd3 {[%emt 0:00:04]} f5 {[%emt 0:02:43]} 20. Rae1 {[%emt 0:08:50]} Bf6 {[%emt 0:06:06]} 21. e4 {[%emt 0:04:03]} fxe4 {[%emt 0:04:04]} 22. Rxe4 {[%emt 0:00:02]} Kf7 {[%emt 0:00:31]} 23. Rfe1 {[%emt 0:00:43]} Rfe8 {[%emt 0:02:51]} 24. Na5 {[%emt 0:06:33]} Bd8 {[%emt 0:03:24]} 25. Nb7 {[%emt 0:02:31]} Bc7 {[%emt 0:01:26]} 26. Nf4 {[%emt 0:00:07]} Nxf4+ {[%emt 0:03:34]} 27. Rxf4+ {[%emt 0:00:19]} Ke7 {[%emt 0:05:13]} 28. d5 {[%emt 0:08:34]} e5 {[%emt 0:01:38]} 29. Rg4 {[%emt 0:03:57]} Kf8 {[%emt 0:04:37]} 30. Rc1 {[%emt 0:08:33]} Bb8 {[%emt 0:01:02]} 31. Rxc8 {[%emt 0:00:46]} Rxc8 {[%emt 0:00:06]} 32. a4 {[%emt 0:00:05]} Rc2 {[%emt 0:01:04]} 33. axb5 {[%emt 0:00:11]} axb5 {[%emt 0:02:48]} 34. Nd8 {[%emt 0:00:52]} g6 {[%emt 0:03:45]} 35. Ne6+ {[%emt 0:07:59]} Ke8 {[%emt 0:04:56]} 36. Rb4 {[%emt 0:01:30]} Ba7 {[%emt 0:00:08]} 37. Rxb5 {[%emt 0:03:53]} Rxf2+ {[%emt 0:00:08]} 38. Kh3 {[%emt 0:00:03]} e4 {[%emt 0:00:18]} 39. Rb4 {[%emt 0:01:36]} e3 {[%emt 0:00:49]} 40. b3 {[%emt 0:01:09]} Rf5 {[%emt 0:07:46]} 41. Ng7+ {[%emt 0:10:50]} Kf8 {[%emt 0:03:35]} 42. Ne6+ {[%emt 0:00:07]} Kg8 {[%emt 0:05:49]} 43. Rb7 {[%emt 0:04:42]} Rf7 {[%emt 0:06:01]} 44. Rb4 {[%emt 0:05:35]} h5 {[%emt 0:03:10]} 45. Ra4 {[%emt 0:00:26]} Rf1 {[%emt 0:05:10]} 46. Nf4 {[%emt 0:01:26]} Bb6 {[%emt 0:01:40]} 47. Re4 {[%emt 0:00:52]} Kf7 {[%emt 0:03:31]} 48. b4 {[%emt 0:04:47]} Rf2 {[%emt 0:01:29]} 49. Ng2 {[%emt 0:02:03]} g5 {[%emt 0:00:51]} 50. Nxe3 {[%emt 0:00:40]} Re2 {[%emt 0:00:50]} 51. Nc4 {[%emt 0:01:19]} g4+ {[%emt 0:00:25]} 52. Kh4 {[%emt 0:00:01]} Rxe4 {[%emt 0:00:20]} 53. Nxb6 {[%emt 0:00:20]} Kg6 {[%emt 0:00:47]} 54. h3 {[%emt 0:00:05]} Re1 {[%emt 0:01:28]} 55. Nc8 {[%emt 0:00:50]} Rh1 {[%emt 0:00:31]} 0-1

[Event "Reykjavik Open 2024"]
[Site "Reykjavik"]
[Date "2024.03.18"]
[Round "5.20"]
[White "Karamsetty, Jeevan"]
[Black "Injac, Teodora"]
[Result "*"]
[ECO "B30"]
[WhiteElo "2187"]
[BlackElo "2434"]
[Annotator "RC"]
[PlyCount "38"]
[EventDate "2024.03.12"]
[EventCountry "ISL"]
[SourceTitle "playchess.com"]
[Source "ChessBase"]
[SourceQuality "1"]
[TimeControl "40/5400+30:1800+30"]

1. e4 {[%emt 0:02:14]} c5 {[%emt 0:06:32]} 2. Nc3 {[%emt 0:00:11]} Nc6 {[%emt 0:00:22]} 3. Bb5 {[%emt 0:00:10]} Nd4 {[%emt 0:00:07]} 4. Nf3 {[%emt 0:00:06]} e6 {[%emt 0:00:23]} 5. O-O {[%emt 0:00:26]} a6 {[%emt 0:00:23]} 6. Bd3 {[%emt 0:00:13]} Nc6 {[%emt 0:00:55]} 7. e5 {[%emt 0:02:01]} d5 {[%emt 0:01:39]} 8. exd6 {[%emt 0:00:07]} Bxd6 {[%emt 0:00:20]} 9. Re1 {[%emt 0:00:06]} Nf6 {[%emt 0:00:17]} 10. Ne4 {[%emt 0:00:07]} Be7 {[%emt 0:00:11]} 11. Nxf6+ {[%emt 0:01:01]} Bxf6 {[%emt 0:00:12]} 12. Be4 {[%emt 0:00:05]} Qc7 {[%emt 0:14:16]} 13. c3 {[%emt 0:01:32]} Bd7 {[%emt 0:01:31]} 14. d3 {[%emt 0:01:10]} O-O-O {[%emt 0:02:33]} 15. Be3 {[%emt 0:03:13]} Ne7 {[%emt 0:05:25]} 16. Qb3 {[%emt 0:08:44]} Bb5 {[%emt 0:00:53]} 17. Rad1 {[%emt 0:11:48]} Nf5 {[%emt 0:02:36]} 18. Bc1 {[%emt 0:09:02]} Nd6 {[%emt 0:05:06]} 19. Bf4 {[%emt 0:01:32]} Qa5 {[%emt 0:03:38]} *

[Event "Reykjavik Open 2024"]
[Site "Reykjavik"]
[Date "2024.03.18"]
[Round "5.20"]
[White "Harish, Neeraj"]
[Black "Garifullina, Leya"]
[Result "1-0"]
[ECO "B30"]
[WhiteElo "2090"]
[BlackElo "2413"]
[Annotator "TA"]
[PlyCount "49"]
[EventDate "2024.03.12"]
[EventCountry "ISL"]
[SourceTitle "playchess.com"]
[Source "ChessBase"]
[SourceQuality "1"]
[TimeControl "40/5400+30:1800+30"]

{[%evp 10,49,19,23,47,8,12,3,7,6,18,8,21,18,10,10,22,13,11,21,75,90,92,90,102,15,58,15,31,24,32,-4,160,169,428,436,436,285,970,964,29981,29978]} 1. e4 {[%emt 0:02:14]} c5 {[%emt 0:06:32]} 2. Nc3 {[%emt 0:00:11]} Nc6 {[%emt 0:00:22]} 3. Bb5 {[%emt 0:00:10]} Nd4 {[%emt 0:00:07]} 4. Nf3 {[%emt 0:00:06]} e6 {[%emt 0:00:23]} 5. O-O {[%emt 0:00:26]} a6 {[%emt 0:00:23]} 6. Bd3 {[%emt 0:00:13]} Nc6 {[%emt 0:00:55]} 7. e5 {[%emt 0:02:01]} d5 {[%emt 0:01:39]} 8. exd6 $1 {[%emt 0:00:07]} Bxd6 {[%emt 0:00:20][%cal Bf8d6,Bd6e7,Be7f6][%mdl 32] The position is equal.} 9. Re1 {[%emt 0:00:06]} Nf6 {[%emt 0:00:17]} 10. Ne4 {[%emt 0:00:07]} Be7 {[%emt 0:00:11]} 11. Nxf6+ {[%emt 0:01:01]} Bxf6 {[%emt 0:00:12]} 12. Be4 {[%emt 0:00:05]} Qc7 {[%emt 0:14:16]} 13. c3 {[%emt 0:01:32]} Bd7 {[%emt 0:01:31]} 14. d3 {[%emt 0:01:10]} O-O-O {[%emt 0:02:33]} (14... O-O $11) 15. Be3 $16 {[%emt 0:03:13]} Ne7 {[%emt 0:05:25]} 16. Qb3 {[%emt 0:08:44][%cal Oe3f4] [#] Black must now prevent Bf4!} Bb5 {[%emt 0:00:53]} 17. Rad1 {[%emt 0:11:48]} (17. Nd2 $16) 17... Nf5 {[%emt 0:02:36]} 18. Bc1 {[%emt 0:09:02]} Nd6 {[%emt 0:05:06]} 19. Bf4 {[%emt 0:01:32]} Qa5 {[%emt 0:03:38]} 20. Ne5 {[%emt 0:14:56]} Qa4 $2 {[%emt 0:04:29] [#]} (20... Bxe5 $11 21. Bxe5 Nxe4 22. dxe4 c4) 21. Nxf7 $1 {[%emt 0:07:16] White is more active.} ({Much weaker is} 21. Qxa4 $6 Bxa4 22. b3 Be8 $11) 21... Nxf7 $2 {[%emt 0:03:38]} (21... Qxb3 {might work better.} 22. Nxd6+ Rxd6 23. axb3 Rdd8) 22. Qxe6+ $18 {[%emt 0:00:08]} Rd7 {[%emt 0:00:01]} 23. Qb6 {[%emt 0:02:21]} Rhd8 $2 {[%emt 0:02:13]} (23... Be5) 24. b3 {[%emt 0:04:24]} ({Less strong is} 24. Qxc5+ Bc6 25. b3 (25. d4 Be7 $16) 25... Qb5 (25... Qxa2 $2 {too greedy.} 26. Bxc6 Rd6 27. Bd5+ Kb8 28. Qb6 $18) 26. Qxb5 axb5 $16) 24... Qa3 {[%emt 0:00:24]} 25. Bf5 {[%emt 0:00:39] Weighted Error Value: White=0.28 (precise) /Black=0.72.  Mistake:       	White=1     	Black=4      Inaccurate:     	White=4     	Black=2      OK:         	White=8     	Black=3      Best:        	White=1     	Black=1      Strong:       	White=2     	---} 1-0